bitfinex/quotes_SOLUSD_20230702
["timestamp","ask_amount","ask_price","bid_price","bid_amount"]
[1688278059190,22.312,18.958,18.951,20.0]
[1688278059389,22.312,18.958,18.948,20.0]
[1688278059979,55.0,18.957,18.947,57.473]
[1688278060175,22.316,18.955,18.95,22.321]
[1688278060598,55.0,18.957,18.941,93.2895]
[1688278060599,22.318,18.953,18.941,93.2895]
[1688278060873,22.318,18.953,18.942,20.0]
[1688278061084,22.318,18.953,18.943,22.329]
[1688278063888,77.329,18.957,18.943,22.329]
[1688278063889,22.317,18.954,18.943,22.329]
[1688278064104,77.318,18.953,18.943,22.329]
[1688278065408,22.318,18.953,18.943,22.329]
[1688278065589,55.0,18.952,18.943,22.329]
[1688278065893,77.319,18.952,18.943,22.329]
[1688278073797,55.0,18.952,18.943,22.329]
[1688278074306,77.319,18.952,18.943,22.329]
[1688278074904,55.0,18.952,18.943,22.329]
[1688278075788,22.329,18.957,18.943,22.329]
[1688278076501,90.5919,18.959,18.943,22.329]
[1688278076806,22.315,18.956,18.943,22.329]
[1688278077193,55.0,18.955,18.943,22.329]
[1688278077503,77.317,18.955,18.943,22.329]
[1688278084790,77.317,18.955,18.943,22.329]
[1688278089212,22.317,18.955,18.943,22.329]
[1688278089515,22.315,18.956,18.943,22.329]
[1688278090311,55.0,18.959,18.943,22.329]
[1688278090509,55.0,18.958,18.943,22.329]
[1688278091813,22.314,18.956,18.943,22.329]
[1688278092016,77.316,18.955,18.943,22.329]
[1688278113320,22.328,18.945,18.939,22.334]
[1688278114011,19.91,18.96,18.94,19.91]
[1688278114211,22.3,18.969,18.956,184.583]
[1688278114433,22.295,18.973,18.96,19.91]
[1688278114621,26.53781364,18.989,18.96,19.91]
[1688278114622,104.653,18.987,18.963,79.731]
[1688278114932,57.384,18.98,18.963,79.731]
[1688278115136,104.653,18.987,18.963,79.731]
[1688278115137,22.278,18.987,18.97,19.91]
[1688278115314,22.278,18.987,18.975,79.683]
[1688278115518,57.327,18.997,18.98,19.91]
[1688278115716,22.272,18.993,18.987,22.277]
[1688278116020,22.278,18.991,18.987,22.277]
[1688278116217,22.275,18.99,18.98,104.687]
[1688278116621,22.275,18.99,18.984,22.28]
[1688278116822,22.275,18.99,18.982,22.283]
[1688278117826,22.275,18.99,18.976,104.707]
[1688278118036,55.0,18.989,18.972,201.3149]
[1688278118343,22.282,18.984,18.977,22.29]
[1688278119111,22.273,18.992,18.981,79.656]
[1688278119327,22.273,18.992,18.982,20.0]
[1688278119532,22.274,18.991,18.985,22.28]
[1688278121022,22.274,18.991,18.982,20.0]
[1688278121230,22.274,18.991,18.981,22.284]
[1688278121432,22.274,18.991,18.982,20.0]
[1688278121619,22.274,18.991,18.982,42.284]
[1688278121934,55.0,18.99,18.982,20.0]
[1688278122134,22.277,18.988,18.982,42.284]
[1688278122624,22.277,18.988,18.982,20.0]
[1688278123230,22.277,18.988,18.976,20.0]
[1688278123827,22.277,18.988,18.982,22.283]
[1688278124630,55.0,18.987,18.98,22.285]
[1688278124835,22.28,18.985,18.979,22.286]
[1688278125135,22.28,18.985,18.978,22.287]
[1688278125331,22.28,18.985,18.971,57.4]
[1688278125631,22.285,18.982,18.977,22.289]
[1688278128036,55.0,18.981,18.969,22.298]
[1688278128247,22.289,18.978,18.97,42.297]
[1688278128529,22.292,18.975,18.969,22.298]
[1688278128838,22.292,18.975,18.966,22.302]
[1688278129025,55.0,18.974,18.966,22.302]
[1688278129337,22.296,18.972,18.965,22.303]
[1688278131335,55.0,18.974,18.965,22.303]
[1688278131637,77.294,18.974,18.965,22.303]
[1688278132834,77.294,18.974,18.96,19.71]
[1688278133036,77.294,18.974,18.961,20.0]
[1688278133416,77.294,18.974,18.955,104.825]
[1688278133620,77.294,18.974,18.954,95.6617]
[1688278133621,79.706,18.97,18.96,22.309]
[1688278133928,79.706,18.97,18.959,22.31]
[1688278134124,55.0,18.969,18.959,22.31]
[1688278134329,22.303,18.966,18.959,22.31]
[1688278137130,22.303,18.966,18.958,22.311]
[1688278139841,22.303,18.966,18.958,22.312]
[1688278140041,22.303,18.966,18.954,95.6617]
[1688278140742,22.303,18.966,18.958,22.312]
[1688278143140,22.301,18.968,18.958,22.312]
[1688278143324,22.99992183,18.992,18.96,19.83]
[1688278143325,57.387,18.977,18.96,19.83]
[1688278143530,22.296,18.972,18.965,22.304]
[1688278143729,90.2236,18.988,18.965,22.304]
[1688278143730,104.679,18.982,18.965,22.304]
[1688278143931,39.57,18.99,18.966,55.0]
[1688278144130,57.427,18.983,18.973,22.294]
[1688278144848,22.28,18.985,18.973,22.294]
[1688278147849,55.0,18.984,18.973,22.294]
[1688278148053,22.285,18.982,18.973,22.294]
[1688278149043,55.0,18.981,18.972,22.295]
[1688278149351,22.285,18.982,18.972,22.295]
[1688278150545,22.291,18.976,18.967,22.301]
[1688278151043,55.0,18.975,18.967,22.301]
[1688278151251,22.295,18.973,18.967,22.301]
[1688278151931,22.295,18.973,18.961,90.0515]
[1688278152139,22.295,18.973,18.962,57.429]
[1688278152344,55.0,18.975,18.967,22.301]
[1688278152740,22.294,18.974,18.967,22.301]
[1688278152948,77.293,18.975,18.967,22.301]
[1688278153552,77.292,18.975,18.967,22.301]
[1688278155740,22.292,18.975,18.967,22.301]
[1688278156546,22.293,18.975,18.967,22.301]
[1688278156739,57.373,18.981,18.967,22.301]
[1688278156936,112.42,18.98,18.967,22.301]
[1688278157947,22.292,18.975,18.967,22.301]
[1688278160459,57.379,18.981,18.967,22.301]
[1688278160655,22.29,18.978,18.967,22.301]
[1688278160967,162.001,18.988,18.97,19.83]
[1688278161260,22.283,18.983,18.975,22.292]
[1688278161657,57.345,18.991,18.975,22.292]
[1688278161956,22.282,18.984,18.975,22.292]
[1688278163456,22.281,18.985,18.975,22.292]
[1688278164864,22.283,18.983,18.975,22.292]
[1688278167460,114.734,18.991,18.975,79.683]
[1688278167661,55.0,18.99,18.975,79.683]
[1688278167859,79.665,18.991,18.975,79.683]
[1688278168064,22.273,18.992,18.975,79.683]
[1688278168774,196.01508,18.996,18.975,79.683]
[1688278168965,20.0,18.995,18.975,79.683]
[1688278169161,124.726,18.995,18.975,79.683]
[1688278169658,22.273,18.992,18.975,79.683]
[1688278170660,55.0,18.991,18.975,79.683]
[1688278170878,22.278,18.987,18.975,79.683]
[1688278171871,55.0,18.986,18.975,79.683]
[1688278172175,22.282,18.984,18.975,79.683]
[1688278172475,22.281,18.985,18.975,79.683]
[1688278175178,55.0,18.984,18.975,22.292]
[1688278175374,22.284,18.983,18.975,22.292]
[1688278176378,55.0,18.984,18.975,22.292]
[1688278176563,112.351,18.989,18.975,22.292]
[1688278176763,22.281,18.985,18.975,22.292]
[1688278183871,22.28,18.986,18.975,22.292]
[1688278184073,22.279,18.987,18.975,22.292]
[1688278185779,22.278,18.988,18.975,22.292]
[1688278188276,55.0,18.987,18.975,22.292]
[1688278188575,22.282,18.984,18.975,22.292]
[1688278190278,22.281,18.985,18.975,22.292]
[1688278192569,22.28,18.986,18.975,22.292]
[1688278196280,77.278,18.987,18.975,22.292]
[1688278196590,55.0,18.987,18.975,22.292]
[1688278197390,22.28,18.986,18.975,22.292]
[1688278197879,55.0,18.985,18.971,98.4683]
[1688278198081,79.658,18.981,18.972,20.0]
[1688278198293,22.285,18.981,18.973,22.294]
[1688278199389,22.288,18.979,18.973,22.294]
[1688278200086,22.287,18.98,18.973,22.294]
[1688278200288,55.0,18.985,18.973,22.294]
[1688278200495,22.284,18.982,18.973,22.294]
[1688278200693,22.286,18.98,18.973,22.294]
[1688278200872,22.286,18.981,18.973,22.294]
[1688278201075,77.287,18.98,18.973,22.294]
[1688278201278,55.0,18.98,18.973,22.294]
[1688278201477,77.286,18.98,18.973,22.294]
[1688278206299,55.0,18.98,18.973,22.294]
[1688278207302,22.281,18.985,18.973,22.294]
[1688278207592,22.282,18.984,18.973,22.294]
[1688278208384,55.0,18.983,18.973,22.294]
[1688278208687,22.286,18.981,18.973,22.294]
[1688278208886,55.0,18.98,18.973,22.294]
[1688278210701,22.282,18.984,18.973,22.294]
[1688278210907,55.0,18.988,18.973,22.294]
[1688278211398,22.283,18.983,18.973,22.294]
[1688278212700,22.283,18.983,18.973,79.691]
[1688278212907,55.0,18.982,18.973,79.691]
[1688278214789,77.284,18.982,18.973,79.691]
[1688278215707,55.0,18.982,18.973,79.691]
[1688278216806,77.284,18.982,18.973,79.691]
[1688278217406,77.284,18.982,18.973,22.294]
[1688278217705,77.284,18.982,18.965,57.419]
[1688278217903,19.84,18.98,18.967,22.301]
[1688278218212,79.683,18.976,18.965,22.304]
[1688278218397,22.292,18.976,18.965,22.303]
[1688278218597,55.0,18.975,18.965,22.303]
[1688278218892,22.295,18.973,18.965,22.303]
[1688278219209,77.217,18.98,18.965,22.303]
[1688278219210,55.0,18.972,18.965,22.303]
[1688278219397,77.296,18.972,18.965,22.303]
[1688278219893,22.296,18.972,18.965,22.303]
[1688278220093,19.84,18.98,18.965,22.303]
[1688278220312,22.292,18.976,18.965,22.303]
[1688278220614,55.0,18.975,18.965,22.303]
[1688278220792,77.293,18.975,18.965,22.303]
[1688278225407,57.421,18.979,18.965,22.303]
[1688278225618,97.7252,18.986,18.965,22.303]
[1688278225801,22.282,18.984,18.97,19.82]
[1688278226110,22.281,18.985,18.974,79.686]
[1688278228507,77.602765,18.991,18.974,79.686]
[1688278228715,22.275,18.99,18.974,79.686]
[1688278229010,22.275,18.99,18.979,79.664]
[1688278229914,22.275,18.99,18.98,20.0]
[1688278230111,22.266,18.998,18.981,55.0]
[1688278230413,22.266,18.998,18.986,79.636]
[1688278230801,22.265,18.999,18.986,79.636]
[1688278234519,55.0,18.998,18.986,79.636]
[1688278235902,77.265,18.998,18.987,0.96300906]
[1688278236194,77.265,18.998,18.99,22.274]
[1688278238326,77.266,18.998,18.99,22.274]
[1688278239607,22.266,18.998,18.99,22.274]
[1688278240199,9.18920651,19.007,18.99,79.619]
[1688278240418,57.309,19.003,18.99,22.274]
[1688278240617,20.0,19.002,18.99,22.274]
[1688278241109,55.0,19.001,18.99,22.274]
[1688278241913,22.265,18.998,18.99,22.274]
[1688278243423,159.55172638,19.04,18.994,79.6]
[1688278243424,55.0,19.004,18.994,79.6]
[1688278243629,57.283,19.011,18.994,79.6]
[1688278243941,93.5415,19.017,18.994,79.6]
[1688278243942,9.18920651,19.012,18.995,23.88432903]
[1688278244215,22.249,19.012,19.0,203.826]
[1688278244399,22.249,19.012,19.004,22.258]
[1688278245201,57.261,19.019,19.004,22.258]
[1688278245414,22.246,19.015,19.004,33.09519922]
[1688278245603,22.246,19.015,19.004,22.258]
[1688278246202,22.246,19.015,18.99,79.48]
[1688278246203,22.246,19.015,18.998,57.319]
[1688278246410,22.246,19.015,19.003,22.258]
[1688278246906,55.0,19.014,19.003,22.258]
[1688278247100,9.18920651,19.018,19.003,22.258]
[1688278247924,30.25152851,19.018,19.003,22.258]
[1688278248406,55.0,19.017,19.003,22.258]
[1688278248719,22.245,19.016,19.003,126.82]
[1688278249622,22.244,19.017,19.004,55.0]
[1688278249824,22.244,19.017,19.007,22.253]
[1688278250010,104.445,19.025,19.007,22.253]
[1688278250313,22.243,19.017,19.007,22.253]
[1688278252214,22.243,19.017,19.001,57.311]
[1688278252410,22.249,19.012,19.005,22.256]
[1688278254223,22.249,19.012,19.002,20.0]
[1688278254527,55.0,19.011,18.994,104.61]
[1688278254822,22.256,19.006,18.999,22.264]
[1688278256723,57.269,19.016,18.999,79.582]
[1688278256924,104.462,19.022,19.007,22.254]
[1688278257130,22.241,19.019,19.007,22.254]
[1688278260114,22.245,19.016,19.007,22.254]
[1688278260317,22.243,19.018,19.007,22.254]
[1688278262418,55.0,19.017,19.007,22.254]
[1688278262737,22.246,19.014,19.007,22.254]
[1688278263736,22.25,19.012,19.006,22.255]
[1688278263921,55.0,19.017,19.006,22.255]
[1688278264313,22.247,19.014,19.006,22.255]
[1688278265927,22.245,19.015,19.006,22.255]
[1688278268335,22.242,19.018,19.006,22.255]
[1688278268523,55.0,19.023,19.006,22.255]
[1688278268723,22.242,19.018,19.006,22.255]
[1688278270638,55.0,19.017,19.006,22.255]
[1688278270829,22.247,19.014,19.006,22.255]
[1688278272341,22.246,19.015,19.006,22.255]
[1688278272741,55.0,19.023,19.006,22.255]
[1688278273036,104.445,19.025,19.001,92.9656]
[1688278273037,22.239,19.021,19.011,79.532]
[1688278273244,22.237,19.022,19.016,22.243]
[1688278273834,22.237,19.022,19.011,57.282]
[1688278274038,22.237,19.022,19.012,20.0]
[1688278274232,22.241,19.019,19.008,104.531]
[1688278274438,22.241,19.019,19.005,57.297]
[1688278274641,55.0,19.018,19.005,57.297]
[1688278274847,55.0,19.018,19.004,104.555]
[1688278274848,22.242,19.018,19.01,22.25]
[1688278278252,22.242,19.018,19.005,57.297]
[1688278278443,22.247,19.014,19.009,22.251]
[1688278278753,22.246,19.015,19.009,22.251]
[1688278280558,55.0,19.017,19.009,22.251]
[1688278281144,22.242,19.018,19.009,22.251]
[1688278283743,55.0,19.017,19.009,22.251]
[1688278284049,22.245,19.016,19.009,22.251]
[1688278286446,55.0,19.015,19.009,22.251]
[1688278286667,22.247,19.014,19.009,22.251]
[1688278287461,22.247,19.014,19.009,22.252]
[1688278287949,55.0,19.023,19.009,22.252]
[1688278288150,22.243,19.017,19.009,22.252]
[1688278288563,22.243,19.018,19.009,22.252]
[1688278291150,55.0,19.017,19.009,22.252]
[1688278291460,22.246,19.015,19.009,22.252]
[1688278292643,22.246,19.015,19.002,98.1968]
[1688278292849,22.246,19.015,19.005,22.256]
[1688278294067,55.0,19.014,19.005,22.256]
[1688278294268,57.261,19.019,19.005,22.256]
[1688278294446,22.246,19.015,19.005,22.256]
[1688278294861,22.244,19.016,19.005,22.256]
[1688278295245,55.0,19.018,19.005,22.256]
[1688278296846,77.243,19.018,19.005,22.256]
[1688278297267,77.242,19.018,19.005,22.256]
[1688278299967,22.242,19.018,19.005,22.256]
[1688278300162,22.241,19.019,19.006,55.0]
[1688278300363,22.241,19.019,19.009,79.538]
[1688278301571,22.245,19.016,19.009,22.252]
[1688278302472,104.459,19.022,19.009,22.252]
[1688278302675,57.247,19.023,19.009,22.252]
[1688278302876,75.0,19.022,19.009,22.252]
[1688278303775,22.243,19.018,19.009,22.252]
[1688278304576,75.0,19.022,19.009,22.252]
[1688278304871,97.238,19.022,19.009,22.252]
[1688278306571,22.238,19.022,19.009,22.252]
[1688278308176,22.241,19.019,19.009,22.252]
[1688278310476,22.24,19.02,19.012,22.248]
[1688278310881,57.24,19.025,19.012,22.248]
[1688278311480,55.0,19.024,19.012,22.248]
[1688278311869,22.238,19.022,19.012,22.248]
[1688278313767,22.236,19.024,19.012,22.248]
[1688278314286,19.61,19.03,19.012,22.248]
[1688278314473,98.9535,19.039,19.013,55.0]
[1688278314680,21.046056,19.033,19.025,183.913]
[1688278315077,57.188,19.043,19.025,194.75019922]
[1688278315279,26.75093622,19.048,19.025,194.75019922]
[1688278315280,22.216,19.041,19.025,194.75019922]
[1688278315677,58.15614351,19.041,19.025,79.473]
[1688278315992,58.15614351,19.041,19.025,22.233]
[1688278316188,9.18920651,19.04,19.025,22.233]
[1688278316391,22.221,19.036,19.025,22.233]
[1688278317185,22.221,19.036,19.025,79.473]
[1688278317393,22.219,19.038,19.025,79.473]
[1688278317779,22.218,19.039,19.025,79.473]
[1688278318086,114.386,19.044,19.025,79.473]
[1688278318087,22.219,19.038,19.025,79.473]
[1688278318280,22.213,19.043,19.03,19.78]
[1688278318496,57.174,19.047,19.033,22.223]
[1688278318995,22.212,19.044,19.033,22.223]
[1688278319583,57.167,19.05,19.033,22.223]
[1688278320194,66.35620651,19.05,19.033,22.223]
[1688278320395,22.211,19.044,19.033,22.223]
[1688278320980,22.216,19.04,19.029,22.228]
[1688278321180,41.996,19.04,19.02,26.80610102]
[1688278321391,79.439,19.034,19.022,22.236]
[1688278321575,22.228,19.03,19.022,22.236]
[1688278322591,22.23,19.028,19.022,22.236]
[1688278322982,77.23,19.029,19.022,22.236]
[1688278323701,55.0,19.029,19.022,22.236]
[1688278324099,57.21,19.035,19.022,22.236]
[1688278324292,22.228,19.031,19.022,22.236]
[1688278324785,55.0,19.034,19.022,22.236]
[1688278325098,22.224,19.033,19.022,22.236]
[1688278325394,22.223,19.034,19.022,22.236]
[1688278326894,55.0,19.033,19.022,22.236]
[1688278327100,22.226,19.032,19.022,22.236]
[1688278331288,57.198,19.039,19.022,22.236]
[1688278333003,22.222,19.035,19.022,22.236]
[1688278334709,22.225,19.033,19.022,22.236]
[1688278335107,22.228,19.03,19.022,22.236]
[1688278335310,22.228,19.03,19.015,104.495]
[1688278335494,22.232,19.027,19.02,22.238]
[1688278337000,22.232,19.027,19.019,22.24]
[1688278345417,22.232,19.027,19.017,22.242]
[1688278345607,55.0,19.026,19.015,22.244]
[1688278345802,22.236,19.023,19.015,22.244]
[1688278346625,22.236,19.023,19.011,93.0882]
[1688278347432,22.236,19.023,19.015,22.245]
[1688278348633,55.0,19.022,19.015,22.245]
[1688278348922,22.239,19.02,19.015,22.245]
[1688278350623,22.239,19.02,19.005,57.3]
[1688278350820,22.239,19.02,19.006,20.0]
[1688278350821,55.0,19.019,19.006,20.0]
[1688278351026,22.245,19.016,19.01,22.251]
[1688278351325,22.247,19.014,19.009,22.251]
[1688278351529,22.247,19.014,19.011,20.0]
[1688278351714,22.246,19.015,19.011,20.0]
[1688278352110,22.245,19.016,19.011,42.25]
[1688278352311,77.245,19.015,19.011,42.25]
[1688278352523,22.244,19.016,19.011,42.25]
[1688278352728,55.0,19.015,19.011,22.25]
[1688278352911,77.246,19.015,19.01,22.25]
[1688278355620,77.246,19.015,19.008,22.252]
[1688278355833,77.246,19.015,19.005,57.3]
[1688278356419,77.246,19.015,19.008,22.253]
[1688278359630,77.246,19.015,19.001,151.5367]
[1688278360633,77.246,19.015,19.001,94.2247]
[1688278360942,77.246,19.015,19.008,22.252]
[1688278364440,22.244,19.017,19.008,22.252]
[1688278364650,22.243,19.018,19.008,22.252]
[1688278364822,22.243,19.018,19.009,20.0]
[1688278365138,150.6483,19.022,19.011,22.249]
[1688278365139,22.241,19.019,19.011,22.249]
[1688278365520,22.241,19.019,19.014,22.246]
[1688278366220,55.0,19.018,19.014,22.246]
[1688278366420,77.242,19.018,19.014,22.246]
[1688278368032,55.0,19.018,19.014,22.246]
[1688278368239,9.18920651,19.026,19.014,22.246]
[1688278368441,22.233,19.026,19.014,22.246]
[1688278368628,9.18920651,19.03,19.014,22.246]
[1688278368826,22.23,19.029,19.014,22.246]
[1688278369927,55.0,19.028,19.014,22.246]
[1688278370245,57.275,19.032,19.014,22.246]
[1688278370543,66.46420651,19.032,19.014,22.246]
[1688278371547,55.0,19.031,19.014,22.246]
[1688278371927,22.231,19.028,19.014,22.246]
[1688278372229,22.233,19.026,19.014,22.246]
[1688278372628,55.0,19.031,19.014,22.246]
[1688278372822,22.234,19.025,19.014,22.246]
[1688278373037,55.0,19.024,19.014,22.246]
[1688278373243,22.237,19.023,19.014,22.246]
[1688278374845,268.31770651,19.031,19.014,22.246]
[1688278375037,22.233,19.026,19.014,22.246]
[1688278378246,55.0,19.025,19.014,22.246]
[1688278378633,57.225,19.03,19.014,22.246]
[1688278379956,22.234,19.025,19.014,22.246]
[1688278382357,55.0,19.024,19.014,22.246]
[1688278382543,22.237,19.022,19.014,22.246]
[1688278385150,55.0,19.021,19.014,22.246]
[1688278385347,77.238,19.021,19.014,22.246]
[1688278385948,57.232,19.028,19.014,22.246]
[1688278386756,55.0,19.027,19.014,22.246]
[1688278388059,22.236,19.023,19.014,22.246]
[1688278388257,77.237,19.022,19.014,22.246]
[1688278388575,55.0,19.021,19.014,22.246]
[1688278388753,77.238,19.021,19.014,22.246]
[1688278389156,77.239,19.021,19.014,22.246]
[1688278395461,55.0,19.021,19.014,22.246]
[1688278395856,19.59,19.02,19.007,161.828]
[1688278396076,22.243,19.017,19.011,22.249]
[1688278396355,22.243,19.017,19.01,22.25]
[1688278396566,55.0,19.016,19.004,57.3]
[1688278396752,22.247,19.014,19.009,22.251]
[1688278400766,22.247,19.014,19.008,22.253]
[1688278401163,22.247,19.014,19.007,22.253]
[1688278401365,55.0,19.013,19.007,22.253]
[1688278401567,22.25,19.012,19.007,22.253]
[1688278406775,22.25,19.012,19.006,22.255]
[1688278407560,22.25,19.012,19.005,22.256]
[1688278407762,22.25,19.012,19.001,151.8603]
[1688278407961,22.25,19.012,19.002,20.0]
[1688278408761,22.25,19.012,19.006,22.255]
[1688278409179,22.25,19.012,19.003,22.259]
[1688278409476,22.25,19.012,19.004,22.257]
[1688278409875,55.0,19.011,19.004,22.257]
[1688278410078,22.251,19.01,19.004,22.257]
[1688278413074,55.0,19.009,19.004,22.257]
[1688278413273,77.253,19.009,19.004,22.257]
[1688278414965,77.252,19.009,19.004,22.257]
[1688278419085,22.249,19.012,19.004,22.257]
[1688278419285,55.0,19.011,19.004,22.257]
[1688278419587,181.32,19.02,19.004,22.257]
[1688278420084,203.577,19.02,19.004,22.257]
[1688278420271,22.244,19.017,19.004,22.257]
[1688278423184,22.248,19.013,19.004,22.257]
[1688278423681,22.247,19.014,19.004,22.257]
[1688278427966,55.0,19.013,19.004,22.257]
[1688278428170,22.251,19.011,19.004,22.257]
[1688278431489,55.0,19.01,19.004,22.257]
[1688278431693,22.253,19.009,19.004,22.257]
[1688278434475,22.253,19.009,19.002,20.0]
[1688278435497,55.0,19.008,19.002,20.0]
[1688278435679,22.255,19.007,18.999,20.0]
[1688278436792,22.255,19.007,19.002,22.259]
[1688278438088,55.0,19.006,18.996,104.597]
[1688278438290,55.0,19.006,18.999,22.264]
[1688278438998,77.256,19.006,18.999,22.264]
[1688278439183,77.256,19.006,18.998,22.264]
[1688278439384,77.256,19.006,18.997,22.265]
[1688278443206,77.256,19.006,18.992,150.6205]
[1688278443585,77.256,19.006,18.992,93.2815]
[1688278443781,77.256,19.006,18.995,22.268]
[1688278451112,22.256,19.006,18.995,22.268]
[1688278451293,55.0,19.005,18.995,22.268]
[1688278451602,22.26,19.002,18.995,22.268]
[1688278453005,55.0,19.001,18.995,22.268]
[1688278453211,22.264,19.0,18.995,22.268]
[1688278459813,22.264,19.0,18.989,92.9914]
[1688278459814,22.264,19.0,18.993,22.271]
[1688278460023,55.0,18.999,18.993,22.271]
[1688278460206,22.265,18.998,18.993,22.271]
[1688278460711,77.265,18.999,18.993,22.271]
[1688278464122,55.0,18.999,18.993,22.271]
[1688278471408,22.263,19.0,18.993,22.271]
[1688278471608,55.0,18.999,18.993,22.271]
[1688278474420,77.264,18.999,18.993,22.271]
[1688278474623,55.0,18.999,18.993,22.271]
[1688278475009,77.264,18.999,18.993,22.271]
[1688278475208,55.0,18.999,18.993,22.271]
[1688278476924,77.264,18.999,18.993,22.271]
[1688278478132,77.264,18.999,18.982,26.0456051]
[1688278478312,77.264,18.999,18.982,162.043]
[1688278478644,77.264,18.999,18.987,22.277]
[1688278481511,22.264,18.999,18.987,21.277]
[1688278482229,19.79,19.0,18.987,21.277]
[1688278482413,22.262,19.001,18.996,22.267]
[1688278482728,22.261,19.002,18.996,22.267]
[1688278483531,57.296,19.007,18.996,22.267]
[1688278484912,22.26,19.002,18.996,22.267]
[1688278488737,22.26,19.002,18.995,22.267]
[1688278491531,57.335,19.009,18.995,22.267]
[1688278491731,22.253,19.009,19.0,19.81]
[1688278491926,57.276,19.014,19.002,22.259]
[1688278492130,22.252,19.01,19.002,22.259]
[1688278494534,75.0,19.017,19.002,22.259]
[1688278494835,22.245,19.016,19.002,22.259]
[1688278495138,22.245,19.016,19.006,79.552]
[1688278495728,22.244,19.017,19.006,79.552]
[1688278496723,22.244,19.017,19.006,22.255]
[1688278497827,22.244,19.021,19.006,22.255]
[1688278497828,22.242,19.018,19.01,19.64]
[1688278498137,22.241,19.019,19.015,22.245]
[1688278499642,57.242,19.025,19.015,22.245]
[1688278499931,22.241,19.019,19.014,22.245]
[1688278500438,22.24,19.02,19.014,22.245]